bitfinex/quotes_SOLUSD_20241022
["timestamp","ask_amount","ask_price","bid_price","bid_amount"]
[1729584855099,20.0,167.11,167.01,6.1184]
[1729584855308,21.2479,167.09,167.0,15.599]
[1729584855874,29.762084,167.08,166.97,7.46870315]
[1729584856074,29.762084,167.08,166.98,8.80660019]
[1729584857178,23.776884,167.08,167.0,8.80660019]
[1729584860907,15.2631,167.09,167.02,8.80660019]
[1729584861113,15.2631,167.09,166.96,21.7231]
[1729584861114,15.2631,167.09,167.04,8.80660019]
[1729584862385,15.2631,167.09,167.02,8.80660019]
[1729584867103,15.2631,167.09,167.04,8.80660019]
[1729584869512,15.2631,167.09,167.02,8.80660019]
[1729584870203,5.984,167.12,167.02,8.80660019]
[1729584870412,43.776884,167.11,167.02,8.80660019]
[1729584871792,49.760984,167.11,167.02,8.80660019]
[1729584872114,43.776884,167.11,167.02,8.80660019]
[1729584876208,43.776884,167.11,167.04,8.80660019]
[1729584878515,20.0,167.12,167.04,8.80660019]
[1729584878813,20.0,167.12,167.06,8.80660019]
[1729584879007,15.2893,167.13,167.06,8.80660019]
[1729584879318,5.982,167.17,167.08,8.80660019]
[1729584879798,5.982,167.17,167.1,8.80660019]
[1729584880699,23.776884,167.16,167.1,8.80660019]
[1729584888111,20.0,167.17,167.1,8.80660019]
[1729584889007,20.0,167.17,167.08,16.5849]
[1729584889317,25.9821,167.17,167.08,25.39150019]
[1729584892129,29.759184,167.16,167.08,8.80660019]
[1729584900621,29.759184,167.16,167.07,8.80660019]
[1729584901218,29.759184,167.16,167.09,8.80660019]
[1729584901539,20.0,167.17,167.09,8.80660019]
[1729584902717,25.9819,167.17,167.09,8.80660019]
[1729584902912,29.759284,167.16,167.08,6.2217]
[1729584903138,5.9828,167.15,167.07,8.80660019]
[1729584903827,5.9828,167.15,167.04,6.1434]
[1729584903828,5.9829,167.15,167.04,6.1434]
[1729584904139,25.9821,167.17,167.08,8.80660019]
[1729584905923,25.9821,167.17,167.04,6.1434]
[1729584906145,25.9821,167.17,167.07,8.80660019]
[1729584906642,20.0,167.17,167.07,8.80660019]
[1729584906835,5.9825,167.16,167.07,8.80660019]
[1729584907032,25.9819,167.17,167.09,8.80660019]
[1729584907337,15.2293,167.18,167.11,8.80660019]
[1729584907536,6.4575,167.22,167.13,8.80660019]
[1729584907537,22.977,167.22,167.13,8.80660019]
[1729584907726,16.5195,167.22,167.15,8.80660019]
[1729584908627,5.9794,167.24,167.15,8.80660019]
[1729584909142,6.5377,167.26,167.17,8.80660019]
[1729584909441,5.9792,167.25,167.17,8.80660019]
[1729584914250,43.776884,167.25,167.1,6.0952]
[1729584914556,43.776884,167.25,167.13,8.80660019]
[1729584914728,5.9806,167.21,167.13,8.80660019]
[1729584915448,5.9815,167.18,167.1,6.0952]
[1729584915638,5.9815,167.18,167.1,14.90180019]
[1729584916025,0.1,167.23,167.1,6.0952]
[1729584916230,6.3889,167.18,167.08,8.80660019]
[1729584916555,40.337084,167.17,167.08,8.80660019]
[1729584917032,5.9823,167.16,167.08,8.80660019]
[1729584921955,16.6493,167.21,167.12,8.80660019]
[1729584922250,16.6493,167.21,167.14,8.80660019]
[1729584922957,22.6299,167.21,167.14,8.80660019]
[1729584923329,22.6299,167.21,167.12,8.80660019]
[1729584923552,20.0,167.19,167.06,6.4022]
[1729584923769,5.9819,167.17,167.1,8.80660019]
[1729584924760,5.9823,167.16,167.1,8.80660019]
[1729584924941,5.9823,167.16,167.08,8.80660019]
[1729584926655,6.2230865,167.25,167.14,8.80660019]
[1729584926840,5.9801,167.22,167.14,8.80660019]
[1729584927539,5.9805,167.21,167.14,8.80660019]
[1729584927739,5.9805,167.21,167.12,23.83120019]
[1729584928635,20.0,167.21,167.12,23.83120019]
[1729584933660,20.0,167.21,167.14,8.80660019]
[1729584935266,20.0,167.22,167.14,8.80660019]
[1729584935466,25.9794,167.24,167.16,8.80660019]
[1729584935959,5.9804,167.22,167.14,8.80660019]
[1729584936180,5.9803,167.22,167.14,8.80660019]
[1729584937461,5.9808,167.21,167.14,8.80660019]
[1729584937661,5.9808,167.2,167.12,23.83120019]
[1729584938042,5.9808,167.2,167.12,8.80660019]
[1729584939055,20.0,167.23,167.12,8.80660019]
[1729584939265,5.9812,167.2,167.12,8.80660019]
[1729584939439,6.3241,167.22,167.12,8.80660019]
[1729584939764,20.0,167.19,167.12,8.80660019]
[1729584940062,5.9814,167.19,167.12,8.80660019]
[1729584940581,5.9821,167.17,167.1,8.80660019]
[1729584944464,5.9821,167.17,167.07,8.80660019]
[1729584944465,20.0,167.16,167.07,8.80660019]
[1729584944682,25.9819,167.18,167.09,8.80660019]
[1729584944977,25.9819,167.18,167.11,8.80660019]
[1729584946194,25.9819,167.18,167.09,8.80660019]
[1729584946667,5.9829,167.15,167.06,8.80660019]
[1729584948688,5.9829,167.15,167.08,8.80660019]
[1729584948968,25.9823,167.16,167.08,8.80660019]
[1729584950672,20.0,167.16,167.08,8.80660019]
[1729584951565,29.758784,167.17,167.08,8.80660019]
[1729584957378,29.758784,167.17,167.05,6.6247]
[1729584957672,29.758784,167.17,167.07,8.80660019]
[1729584959671,29.758784,167.17,167.09,8.80660019]
[1729584960373,43.776884,167.18,167.09,8.80660019]
[1729584961372,49.758484,167.18,167.09,8.80660019]
[1729584962068,20.0,167.19,167.11,8.80660019]
[1729584964683,16.2182,167.2,167.11,8.80660019]
[1729584964881,15.047,167.26,167.11,8.80660019]
[1729584964882,16.435,167.24,167.15,8.80660019]
[1729584965081,22.65118169,167.24,167.17,8.80660019]
[1729584965758,28.63058169,167.24,167.17,8.80660019]
[1729584966285,6.21618169,167.24,167.19,8.80660019]
[1729584966576,22.323,167.28,167.19,8.80660019]
[1729584967455,23.776884,167.27,167.19,8.80660019]
[1729584967657,29.755384,167.27,167.19,8.80660019]
[1729584968879,5.9787,167.26,167.19,8.80660019]
[1729584969373,23.776884,167.27,167.19,8.80660019]
[1729584969578,5.979,167.26,167.19,8.80660019]
[1729584970169,23.776884,167.27,167.19,8.80660019]
[1729584970382,23.776884,167.27,167.21,8.80660019]
[1729584971957,22.3228,167.28,167.21,8.80660019]
[1729584972356,20.0,167.27,167.21,8.80660019]
[1729584972763,25.9784,167.27,167.19,8.80660019]
[1729584972956,5.9784,167.27,167.19,8.80660019]
[1729584976654,22.3227,167.28,167.21,8.80660019]
[1729584976879,6.2133,167.3,167.23,8.80660019]
[1729584977080,6.6000782,167.31,167.25,8.80660019]
[1729584977081,6.21571515,167.28,167.25,8.80660019]
[1729584977285,0.6231782,167.31,167.25,8.80660019]
[1729584978483,0.6231782,167.31,167.23,8.80660019]
[1729584978687,0.6231782,167.31,167.18,15.9765]
[1729584978866,0.6231782,167.31,167.2,8.80660019]
[1729584979064,5.9781,167.28,167.2,8.80660019]
[1729584979463,5.9775,167.3,167.2,8.80660019]
[1729584979663,5.9775,167.3,167.22,8.80660019]
[1729584982181,20.6231782,167.31,167.22,8.80660019]
[1729584982399,26.6000782,167.31,167.22,8.80660019]
[1729584982894,6.6000782,167.31,167.22,8.80660019]
[1729584983100,0.6231782,167.31,167.24,8.80660019]
[1729584983499,6.6000782,167.31,167.24,8.80660019]
[1729584983681,23.776884,167.3,167.18,15.9765]
[1729584983999,5.9777,167.29,167.22,8.80660019]
[1729584984694,0.6231782,167.31,167.22,8.80660019]
[1729584984888,6.6001782,167.31,167.22,8.80660019]
[1729584985498,6.6001782,167.31,167.24,8.80660019]
[1729584986881,0.6231782,167.31,167.24,8.80660019]
[1729584987311,5.9773,167.3,167.22,8.80660019]
[1729584988086,0.6231782,167.31,167.22,8.80660019]
[1729584988695,5.9776,167.3,167.22,8.80660019]
[1729584988910,5.9772,167.3,167.22,8.80660019]
[1729584998008,5.9772,167.3,167.21,16.3304]
[1729584998207,39.036984,167.3,167.21,16.3304]
[1729584998407,20.0,167.29,167.18,8.80660019]
[1729584998739,5.9787,167.26,167.18,8.80660019]
[1729584999297,5.9792,167.25,167.18,8.80660019]
[1729584999985,5.9787,167.26,167.18,8.80660019]
[1729585000185,25.9784,167.27,167.2,8.80660019]
[1729585001114,5.9784,167.27,167.2,8.80660019]
[1729585008417,5.9784,167.27,167.19,8.80660019]
[1729585011191,5.9784,167.27,167.21,8.80660019]
[1729585012106,23.776884,167.29,167.21,8.80660019]
[1729585012497,6.6000782,167.31,167.23,8.80660019]
[1729585012817,20.0,167.3,167.23,8.80660019]
[1729585013015,0.6231782,167.31,167.23,8.80660019]
[1729585019308,5.9778,167.29,167.21,15.26140019]
[1729585019512,23.776884,167.3,167.19,8.80660019]
[1729585019728,5.9783,167.28,167.19,8.80660019]
[1729585020809,43.776884,167.27,167.15,8.80660019]
[1729585021012,43.776884,167.25,167.15,8.80660019]
[1729585021207,49.755184,167.27,167.13,21.7892]
[1729585021409,5.9805,167.21,167.13,30.59580019]
[1729585021632,5.9809,167.2,167.09,22.7324]
[1729585021933,5.9805,167.21,167.11,8.80660019]
[1729585022927,5.9819,167.17,167.09,22.7324]
[1729585023129,40.439984,167.19,167.09,16.6603]
[1729585023316,40.439984,167.19,167.07,8.80660019]
[1729585023317,25.9824,167.16,167.07,8.80660019]
[1729585023519,5.9828,167.15,167.07,8.80660019]
[1729585025123,20.0,167.16,167.07,8.80660019]
[1729585025326,23.776884,167.15,167.07,8.80660019]
[1729585026213,20.0,167.16,167.07,8.80660019]
[1729585026537,22.6446,167.19,167.07,8.80660019]
[1729585026710,20.0,167.17,167.09,8.80660019]
[1729585027735,23.776884,167.18,167.09,8.80660019]
[1729585028411,23.776884,167.18,167.06,37.54059971]
[1729585028613,5.9821,167.17,167.06,13.76371571]
[1729585028912,23.776884,167.16,167.06,13.76371571]
[1729585029310,16.6631,167.19,167.06,13.76371571]
[1729585029613,20.0,167.18,167.06,13.76371571]
[1729585030434,23.776884,167.17,167.06,13.76371571]
[1729585031341,23.776884,167.17,167.05,21.7428]
[1729585032042,23.776884,167.1,166.98,40.02767648]
[1729585032248,5.9845,167.1,166.98,53.79139219]
[1729585033024,23.776884,167.1,166.98,53.79139219]
[1729585034249,29.762684,167.06,166.95,22.8463]
[1729585034541,23.776884,167.06,166.95,22.8463]
[1729585034850,23.776884,167.04,166.95,22.8463]
[1729585035344,29.763584,167.04,166.95,22.8463]
[1729585036729,23.776884,167.06,166.95,22.8463]
[1729585036937,23.776884,167.05,166.95,22.8463]
[1729585037240,29.763184,167.05,166.95,22.8463]
[1729585041029,23.776884,167.05,166.95,22.8463]
[1729585041233,20.0,167.07,166.96,13.76371571]
[1729585043952,25.9856,167.07,166.96,13.76371571]
[1729585044454,25.9856,167.07,166.95,22.8463]
[1729585044753,23.776884,167.06,166.95,22.8463]
[1729585044942,29.762684,167.06,166.95,22.8463]
[1729585048153,29.762384,167.07,166.95,22.8463]
[1729585048329,16.4969,167.09,166.98,13.76371571]
[1729585048949,22.4817,167.09,166.98,13.76371571]
[1729585050254,5.9856,167.07,166.96,13.76371571]
[1729585050457,16.4969,167.09,166.96,13.76371571]
[1729585050759,5.9865,167.05,166.95,22.8463]
[1729585051350,23.776884,167.04,166.95,22.8463]
[1729585051735,29.763484,167.04,166.95,22.8463]
[1729585052541,23.776884,167.04,166.95,22.8463]
[1729585052851,20.0,167.06,166.95,22.8463]
[1729585053051,20.0,167.06,166.96,13.76371571]
[1729585058534,20.0,167.06,166.95,22.8463]
[1729585060554,23.776884,167.05,166.95,22.8463]
[1729585060757,5.9867,167.04,166.95,22.8463]
[1729585064538,20.0,167.06,166.95,22.8463]
[1729585064866,5.9863,167.05,166.96,13.76371571]
[1729585065044,6.2677,167.05,166.9,21.3]
[1729585065360,5.9874,167.02,166.91,13.76371571]
[1729585068264,5.9874,167.02,166.93,8.82512272]
[1729585071161,23.776884,167.01,166.93,8.82512272]
[1729585071536,23.776884,167.01,166.9,21.3]
[1729585071537,23.776884,167.02,166.95,8.82512272]
[1729585073347,22.2651,167.03,166.95,8.82512272]
[1729585077659,16.2781,167.03,166.95,8.82512272]
[1729585077863,16.0519,167.07,166.99,8.82512272]
[1729585078166,5.986,167.06,166.99,8.82512272]
[1729585079172,23.776884,167.05,166.91,62.34447648]
[1729585079371,23.776884,167.03,166.95,8.82512272]
[1729585079549,5.9869,167.03,166.95,8.82512272]
[1729585080756,23.776884,167.06,166.95,8.82512272]
[1729585080975,29.762784,167.06,166.99,8.82512272]
[1729585081743,23.776884,167.04,166.96,8.82512272]
[1729585082871,23.776884,167.04,166.98,8.82512272]
[1729585084250,16.0519,167.07,167.02,8.82512272]
[1729585084448,6.24516408,167.08,167.02,8.82512272]
[1729585084667,15.0077,167.11,167.04,8.82512272]
[1729585084869,15.0077,167.11,167.06,8.82512272]
[1729585085046,15.0077,167.11,167.04,8.82512272]
[1729585088052,6.24421987,167.14,167.08,8.82512272]
[1729585088250,16.5879,167.15,167.1,8.82512272]
[1729585088446,5.9819,167.17,167.1,8.82512272]
[1729585089258,23.776884,167.16,167.1,8.82512272]
[1729585090376,23.776884,167.13,167.02,22.7896]
[1729585090675,23.776884,167.13,167.03,13.76515077]
[1729585093385,5.9837,167.12,167.03,13.76515077]
[1729585093571,29.760184,167.13,167.03,13.76515077]
[1729585094084,23.776884,167.13,167.03,13.76515077]
[1729585094389,25.9822,167.17,167.07,13.76515077]
[1729585095178,20.0,167.17,167.07,13.76515077]
[1729585095487,5.9824,167.16,167.07,13.76515077]
[1729585095674,5.9824,167.16,167.05,13.76515077]
[1729585099678,23.776884,167.16,167.05,13.76515077]
[1729585099865,5.9835,167.13,167.03,13.76515077]
[1729585101575,22.2138,167.13,167.03,13.76515077]
[1729585103087,16.2303,167.13,167.03,13.76515077]
[1729585103385,22.7334,167.13,167.02,16.5959]
[1729585103685,29.761884,167.09,166.99,13.76515077]
[1729585110300,29.761884,167.09,167.01,8.81751609]
[1729585112301,23.776884,167.09,167.01,8.81751609]
[1729585115883,5.9841,167.11,167.03,8.81751609]
[1729585116195,5.9841,167.11,166.98,22.071]
[1729585116196,23.776884,167.11,166.98,22.071]
[1729585116380,23.776884,167.1,167.02,8.81751609]
[1729585116895,23.776884,167.1,167.04,8.81751609]
[1729585117600,22.7334,167.13,167.06,8.81751609]
[1729585117800,16.2303,167.13,167.06,8.81751609]
[1729585121800,23.776884,167.12,166.98,22.071]
[1729585121998,23.776884,167.1,167.03,8.81751609]
[1729585134709,23.776884,167.08,166.93,21.2811]
[1729585134916,23.776884,167.04,166.97,8.81751609]
[1729585135215,23.776884,167.04,166.95,8.81751609]
[1729585135510,23.776884,167.02,166.95,8.81751609]
[1729585137020,23.776884,167.03,166.95,8.81751609]
[1729585137416,47.38988119,167.07,166.97,8.81751609]
[1729585137417,5.9862,167.06,166.97,8.81751609]
[1729585137616,23.776884,167.05,166.97,8.81751609]
[1729585143526,23.776884,167.06,166.97,8.81751609]
[1729585143729,29.762684,167.06,166.97,8.81751609]
[1729585151235,29.762684,167.06,166.93,21.2811]
[1729585151450,5.987,167.03,166.93,21.2811]
[1729585151651,23.776884,167.02,166.95,8.81751609]
[1729585154353,23.776884,167.02,166.93,21.2811]
[1729585154526,23.776884,167.0,166.89,22.1683]
[1729585154731,29.765584,166.98,166.88,8.81751609]
[1729585154941,15.9296,166.95,166.81,22.1683]
[1729585155140,23.776884,166.93,166.85,8.81751609]
[1729585155341,5.9909,166.92,166.81,22.1683]
[1729585155543,23.776884,166.92,166.84,8.81751609]
[1729585159570,23.776884,166.93,166.84,8.81751609]
[1729585160075,15.9296,166.95,166.86,8.81751609]
[1729585160240,21.9195,166.95,166.86,8.81751609]
[1729585160840,15.9296,166.95,166.86,8.81751609]
[1729585161340,23.776884,166.94,166.86,8.81751609]
[1729585162550,29.767684,166.92,166.84,8.81751609]
[1729585164042,5.9912,166.91,166.81,22.1683]
[1729585164237,23.776884,166.9,166.83,8.81751609]
[1729585166144,15.9296,166.95,166.81,22.1683]
[1729585166145,20.0,166.94,166.87,8.81751609]
[1729585166339,25.9904,166.94,166.81,22.1683]
[1729585166550,5.9905,166.93,166.84,8.81751609]
[1729585167543,23.776884,166.92,166.84,8.81751609]
[1729585170361,23.776884,166.91,166.84,8.81751609]
[1729585171565,29.768284,166.91,166.82,8.81751609]
[1729585171769,23.776884,166.89,166.82,8.81751609]
[1729585175680,23.776884,166.87,166.8,8.81751609]
[1729585175872,29.769584,166.87,166.8,8.81751609]
[1729585176783,23.776884,166.87,166.8,8.81751609]
[1729585178566,23.776884,166.87,166.77,21.9189]
[1729585178567,23.776884,166.85,166.77,21.9189]
[1729585178776,23.776884,166.85,166.78,8.81751609]
[1729585178959,23.776884,166.85,166.8,8.81751609]
[1729585179153,23.776884,166.86,166.8,8.81751609]
[1729585180780,29.769984,166.86,166.78,8.81751609]
[1729585183064,29.769984,166.86,166.77,21.9189]
[1729585183065,23.776884,166.87,166.8,8.81751609]
[1729585183375,16.2014,166.88,166.8,8.81751609]
[1729585184778,23.776884,166.87,166.8,8.81751609]
[1729585185159,23.776884,166.87,166.77,21.9189]
[1729585185359,23.776884,166.87,166.81,8.81751609]
[1729585189462,23.776884,166.87,166.82,8.81751609]
[1729585191084,23.776884,166.87,166.77,21.9189]
[1729585191265,23.776884,166.87,166.81,8.81751609]
[1729585192155,23.776884,166.87,166.77,21.9189]
[1729585192359,23.776884,166.87,166.81,8.81751609]
[1729585193181,23.776884,166.87,166.77,21.9189]
[1729585193385,23.776884,166.87,166.81,8.81751609]
[1729585193587,23.776884,166.87,166.77,21.9189]
[1729585193890,23.776884,166.83,166.73,21.5355]
[1729585194079,23.776884,166.83,166.76,8.81751609]
[1729585194263,23.776884,166.84,166.73,21.5355]
[1729585194467,23.776884,166.84,166.76,8.81751609]
[1729585195083,29.770584,166.84,166.76,8.81751609]
[1729585196177,29.770584,166.84,166.73,21.5355]
[1729585196380,29.770584,166.84,166.76,8.81751609]
[1729585196573,23.776884,166.81,166.74,8.81751609]
[1729585199078,15.6381,166.82,166.72,6.86893382]
[1729585199283,15.6381,166.82,166.77,8.81751609]
[1729585199973,15.6381,166.82,166.72,6.86893382]
[1729585200287,23.776884,166.81,166.76,8.81751609]
[1729585200993,15.5524,166.86,166.8,8.81751609]
[1729585201788,6.2444401,166.91,166.8,8.81751609]
[1729585201789,5.992,166.89,166.8,8.81751609]
[1729585201975,21.7968401,166.91,166.82,8.81751609]
[1729585202175,5.9916,166.9,166.82,8.81751609]
[1729585202979,20.0,166.89,166.82,8.81751609]
[1729585203168,15.5524,166.91,166.84,8.81751609]
[1729585203376,17.49550995,166.92,166.86,8.81751609]
[1729585203377,10.94610995,166.92,166.86,8.81751609]
[1729585203795,10.94610995,166.92,166.9,8.81751609]
[1729585204300,10.94610995,166.92,166.85,15.2892]
[1729585204597,10.94610995,166.92,166.88,8.81751609]
[1729585209778,10.94610995,166.92,166.9,8.81751609]
[1729585209976,10.94610995,166.92,166.88,8.81751609]
[1729585211891,10.94610995,166.92,166.9,8.81751609]
[1729585212484,10.94610995,166.92,166.85,15.2892]
[1729585212792,10.94610995,166.92,166.9,8.81751609]
[1729585212980,10.94610995,166.92,166.88,8.81751609]
[1729585217102,10.94610995,166.92,166.9,8.81751609]
[1729585217778,10.94610995,166.92,166.88,8.81751609]
[1729585218905,23.776884,166.91,166.84,8.81751609]
[1729585220687,23.776884,166.91,166.86,8.81751609]
[1729585222205,10.94610995,166.92,166.88,8.81751609]
[1729585226089,5.9924,166.88,166.7,22.9983]
[1729585226287,43.776884,166.83,166.75,6.24607997]
[1729585226499,43.776884,166.83,166.74,8.81751609]
[1729585226500,23.776884,166.81,166.74,8.81751609]
[1729585226707,20.0,166.83,166.78,8.81751609]
[1729585226895,23.776884,166.82,166.78,8.81751609]
[1729585227218,23.776884,166.82,166.7,22.9983]
[1729585227219,23.776884,166.82,166.76,8.81751609]
[1729585228202,29.772084,166.8,166.72,9.44069429]
[1729585228911,23.776884,166.78,166.72,0.6231782]
[1729585229110,5.9963,166.77,166.72,0.6231782]
[1729585229416,23.776884,166.76,166.72,0.6231782]
[1729585230194,29.773584,166.76,166.72,0.6231782]
[1729585230603,49.774584,166.73,166.72,0.6231782]
[1729585232506,49.775984,166.69,166.68,0.9802]
[1729585237390,49.775984,166.69,166.55,0.6231782]
[1729585237391,6.0017,166.62,166.55,0.6231782]
[1729585237596,23.776884,166.61,166.55,0.6231782]
[1729585239318,23.776884,166.58,166.55,0.6231782]
[1729585240591,20.0,166.62,166.55,0.6231782]
[1729585240800,23.776884,166.61,166.55,0.6231782]
[1729585242690,20.0,166.65,166.56,13.83285969]
[1729585242903,23.776884,166.64,166.56,13.83285969]
[1729585243815,23.776884,166.65,166.56,13.83285969]
[1729585244115,23.776884,166.63,166.56,13.83285969]
[1729585244325,23.776884,166.63,166.55,6.8640782]
[1729585245198,23.776884,166.61,166.55,0.6231782]
[1729585247518,23.776884,166.59,166.55,0.6231782]
[1729585247898,23.776884,166.57,166.55,0.6231782]
[1729585248094,29.779584,166.59,166.55,0.6231782]
[1729585251221,23.776884,166.57,166.55,0.6231782]
[1729585251599,26.25920238,166.65,166.55,0.6231782]
[1729585251804,20.0,166.64,166.55,0.6231782]
[1729585252421,26.25920238,166.65,166.55,0.6231782]
[1729585252912,23.776884,166.64,166.55,0.6231782]
[1729585253528,23.776884,166.6,166.55,0.6231782]
[1729585255003,29.779284,166.6,166.55,0.6231782]
[1729585257917,6.003,166.59,166.55,0.6231782]
[1729585258111,23.776884,166.58,166.55,0.6231782]
[1729585259111,20.0,166.62,166.55,0.6231782]
[1729585259832,6.0017,166.62,166.55,0.6231782]
[1729585260425,23.776884,166.61,166.55,0.6231782]
[1729585261104,23.776884,166.62,166.55,0.6231782]
[1729585261310,23.776884,166.61,166.55,0.6231782]
[1729585262536,10.96396375,166.65,166.56,13.83285969]
[1729585262744,6.001,166.64,166.56,13.83285969]
[1729585262934,6.001,166.64,166.55,0.6231782]
[1729585263520,16.96456375,166.65,166.55,0.6231782]
[1729585263848,23.776884,166.64,166.55,0.6231782]
[1729585265142,29.777984,166.64,166.55,0.6231782]
[1729585265445,23.776884,166.64,166.55,0.6231782]
[1729585266628,10.96396375,166.65,166.58,13.83285969]
[1729585266829,10.96396375,166.65,166.62,13.83285969]
[1729585267030,10.96396375,166.65,166.57,15.3183]
[1729585267234,10.96396375,166.65,166.57,29.15115969]
[1729585268129,10.96396375,166.65,166.57,15.3183]
[1729585268442,23.776884,166.64,166.57,15.3183]
[1729585269145,10.96396375,166.65,166.57,15.3183]
[1729585269327,16.96456375,166.65,166.57,15.3183]
[1729585270150,16.96456375,166.65,166.56,13.83285969]
[1729585270443,23.776884,166.61,166.55,0.6231782]
[1729585270622,29.779084,166.61,166.55,0.6231782]
[1729585274633,23.776884,166.57,166.55,0.6231782]
[1729585274834,29.780484,166.57,166.55,0.6231782]
[1729585275143,23.776884,166.57,166.55,0.6231782]
[1729585275342,29.780684,166.56,166.55,0.6231782]
[1729585276536,29.780684,166.56,149.33,67.08551189]
[1729585276537,23.776884,166.47,166.38,14.45603789]
[1729585278038,6.0082,166.44,166.38,0.6231782]
[1729585278257,23.776884,166.43,166.38,0.6231782]
[1729585278636,6.0091,166.42,166.38,0.6231782]
[1729585278960,23.776884,166.41,166.38,0.6231782]
[1729585280064,20.0,166.45,166.38,0.6231782]
[1729585280232,23.776884,166.44,166.38,0.6231782]
[1729585280436,6.0092,166.42,166.38,0.6231782]
[1729585280634,23.776884,166.44,166.38,0.6231782]
[1729585280635,29.785284,166.44,166.38,0.6231782]
[1729585281444,23.776884,166.4,166.38,0.6231782]
[1729585281842,10.97841067,166.44,166.38,0.6231782]
[1729585282062,23.776884,166.43,166.38,0.6231782]
[1729585283547,10.97841067,166.44,166.38,0.6231782]
[1729585286982,43.776884,166.47,166.4,13.83285969]
[1729585287177,23.776884,166.47,166.4,13.83285969]
[1729585288270,23.776884,166.47,166.38,15.7659782]
[1729585288462,23.776884,166.45,166.38,15.7659782]
[1729585288661,23.776884,166.47,166.38,15.7659782]
[1729585288850,23.776884,166.47,166.38,29.59883789]
[1729585290378,6.24589164,166.48,166.4,13.83285969]
[1729585290581,16.98018657,166.51,166.4,13.83285969]
[1729585290784,20.0,166.5,166.4,13.83285969]
[1729585291081,10.97458657,166.51,166.43,13.83285969]
[1729585292970,10.97458657,166.51,166.45,13.83285969]
[1729585293299,10.97458657,166.51,166.47,13.83285969]
[1729585293457,10.97458657,166.51,166.45,13.83285969]
[1729585294264,10.97458657,166.51,166.49,13.83285969]
[1729585296470,10.97458657,166.51,166.47,28.97665969]
[1729585296779,10.97458657,166.51,166.47,15.1438]
[1729585298376,10.97458657,166.51,166.43,13.83285969]
[1729585299592,10.97458657,166.51,166.45,13.83285969]
[1729585300057,10.97458657,166.51,166.47,13.83285969]
[1729585301265,23.776884,166.5,166.42,15.9183]
[1729585301569,23.776884,166.48,166.42,15.9183]
[1729585301776,23.776884,166.49,166.42,15.9183]
[1729585302481,23.776884,166.47,166.38,30.69063789]
[1729585303267,29.783984,166.47,166.38,16.8577782]
[1729585304194,23.776884,166.47,166.38,16.8577782]
[1729585304368,23.776884,166.47,166.38,30.69063789]
[1729585305493,23.776884,166.47,166.38,0.6231782]
[1729585305690,6.0081,166.44,166.38,0.6231782]
[1729585305988,23.776884,166.43,166.38,0.6231782]
[1729585311083,23.776884,166.45,166.38,0.6231782]
[1729585311291,23.776884,166.47,166.38,0.6231782]
[1729585311675,23.776884,166.45,166.38,0.6231782]
[1729585311990,23.776884,166.43,166.38,0.6231782]
[1729585312666,20.0,166.47,166.38,0.6231782]
[1729585312869,23.776884,166.46,166.38,0.6231782]
[1729585315679,29.784284,166.46,166.38,0.6231782]
[1729585316292,6.0078,166.45,166.38,0.6231782]
[1729585317775,29.784284,166.46,166.38,0.6231782]
[1729585318172,23.776884,166.46,166.38,14.45603789]
[1729585320390,20.0,166.47,166.38,14.45603789]
[1729585321067,20.0,166.47,166.4,13.83285969]
[1729585321296,6.24126833,166.5,166.44,13.83285969]
[1729585321504,15.9794,166.53,166.46,13.83285969]
[1729585323497,15.9794,166.53,166.42,15.2565]
[1729585323498,12.0638,166.56,166.48,13.83285969]
[1729585324282,6.0042,166.55,166.46,13.83285969]
[1729585325696,6.0042,166.55,166.48,13.83285969]
[1729585326008,21.43310851,166.57,166.48,13.83285969]
[1729585326009,27.43660851,166.57,166.48,13.83285969]
[1729585327888,15.194,166.57,166.48,13.83285969]
[1729585328082,15.194,166.57,166.5,13.83285969]
[1729585328685,21.1978,166.57,166.5,13.83285969]
[1729585328902,15.194,166.57,166.5,13.83285969]
[1729585332733,15.194,166.57,166.42,15.2565]
[1729585332883,15.0108,166.55,166.43,13.83285969]
[1729585333090,6.0052,166.53,166.43,13.83285969]
[1729585333292,6.23868286,166.56,166.43,13.83285969]